fUSD/lending_fUSD_20241107
["ID","MTS","AMOUNT","RATE_DAILY","PERIOD"]
[341539302,1730969444078,-1924.1,0.00030136,4]
[341539303,1730969444087,-500.0,0.00030136,4]
[341539304,1730969444097,-2567.56,0.00030136,4]
[341539305,1730969444106,-238.584207,0.00030136,7]
[341539306,1730969444116,-238.584207,0.00030136,7]
[341539307,1730969444126,-500.0,0.00030136,4]
[341539308,1730969444135,-500.0,0.00030136,4]
[341539309,1730969444145,-500.0,0.00030136,4]
[341539310,1730969444155,-581.78,0.00030136,4]
[341539311,1730969444164,-238.584207,0.00030136,7]
[341539312,1730969444174,-238.584207,0.00030136,7]
[341539313,1730969444184,-1581.75,0.00030136,4]
[341539314,1730969444194,-1445.23,0.00030136,4]
[341539315,1730969444203,-4516.7,0.00030136,4]
[341539316,1730969444213,-4122.29,0.00030136,4]
[341539317,1730969444222,-500.0,0.00030136,4]
[341539318,1730969444231,-568.7638287,0.00030136,4]
[341539319,1730969444241,-632.69,0.00030136,4]
[341539320,1730969444251,-500.0,0.00030136,4]
[341539321,1730969444260,-500.0,0.00030136,4]
[341539322,1730969444271,-500.0,0.00030136,4]
[341539323,1730969444281,-700.45,0.00030136,4]
[341539324,1730969444290,-285.13717675,0.00030136,4]
[341539325,1730969444300,-579.18,0.00030136,4]
[341539326,1730969444312,-1033.38,0.00030136,4]
[341539327,1730969444322,-1314.03,0.00030136,4]
[341539328,1730969444331,-500.0,0.00030136,4]
[341539329,1730969444341,-500.0,0.00030136,4]
[341539330,1730969444351,-506.23,0.00030136,4]
[341539331,1730969444361,-500.0,0.00030136,4]
[341539332,1730969444371,-500.0,0.00030136,4]
[341539333,1730969444381,-500.0,0.00030136,4]
[341539334,1730969444392,-812.09,0.00030136,4]
[341539335,1730969444402,-886.0,0.00030136,4]
[341539336,1730969444412,-500.0,0.00030136,4]
[341539337,1730969444422,-500.0,0.00030136,4]
[341539338,1730969444432,-1117.84,0.00030136,4]
[341539339,1730969444442,-500.0,0.00030136,4]
[341539340,1730969444451,-500.0,0.00030136,4]
[341539341,1730969444461,-186.040076,0.00030136,7]
[341539342,1730969444471,-2914.42,0.00030136,4]
[341539343,1730969444481,-151.0,0.00030136,7]
[341539344,1730969444491,-500.0,0.00030136,4]
[341539345,1730969444502,-151.0,0.00030136,7]
[341539346,1730969444512,-500.0,0.00030136,4]
[341539347,1730969444522,-500.0,0.00030136,4]
[341539348,1730969444532,-2079.07,0.00030136,4]
[341539349,1730969444542,-518.39,0.00030136,4]
[341539350,1730969444552,-1648.26,0.00030136,4]
[341539351,1730969444565,-500.0,0.00030136,4]
[341539352,1730969444575,-544.01552304,0.00030136,4]
[341539353,1730969444584,-1323.87,0.00030136,4]
[341539354,1730969444594,-534.47,0.00030136,4]
[341539355,1730969444604,-500.0,0.00030136,4]
[341539356,1730969444613,-500.0,0.00030136,4]
[341539357,1730969444623,-500.0,0.00030136,4]
[341539358,1730969444633,-500.0,0.00030136,4]
[341539359,1730969444643,-1755.77,0.00030136,4]
[341539360,1730969444653,-151.18428558,0.00030136,4]
[341539361,1730969444664,-770.8,0.00030136,4]
[341539362,1730969444674,-23613.826283,0.00030152,2]
[341539363,1730969444683,-500.0,0.00030173,5]
[341539364,1730969444693,-500.0,0.00030173,2]
[341539365,1730969444702,-159.761,0.0003021,2]
[341539366,1730969444711,-1089.60593636,0.000303,2]
[341539367,1730969444720,-1487.78,0.00030332,2]
[341539368,1730969444730,-500.0,0.00030399,4]
[341539369,1730969444739,-500.0,0.00030399,4]
[341539370,1730969444749,-1019.56,0.00030399,4]
[341539371,1730969444759,-500.0,0.00030399,4]
[341539372,1730969444769,-1271.9,0.00030399,4]
[341539373,1730969444778,-1271.9,0.00030399,4]
[341539374,1730969444789,-250000.0,0.000304,2]
[341539375,1730969444799,-151.0,0.000304,7]
[341539376,1730969444808,-151.478236,0.000304,7]
[341539377,1730969444818,-151.0,0.000304,7]
[341539378,1730969444827,-151.0,0.000304,7]
[341539379,1730969444836,-306.395862,0.000304,7]
[341539380,1730969444845,-306.395862,0.000304,7]
[341539381,1730969444854,-151.0,0.000304,7]
[341539382,1730969444865,-151.0,0.000304,7]
[341539383,1730969444875,-200.035982,0.000304,7]
[341539384,1730969444884,-200.035982,0.000304,7]
[341539385,1730969444893,-151.0,0.000304,7]
[341539386,1730969444902,-238.584207,0.000304,7]
[341539387,1730969444912,-238.584207,0.000304,7]
[341539388,1730969444921,-151.0,0.000304,7]
[341539389,1730969444933,-552.65,0.00030409,4]
[341539390,1730969444942,-552.65,0.00030409,4]
[341539391,1730969444952,-500.0,0.00030409,4]
[341539392,1730969444961,-500.0,0.00030409,4]
[341539393,1730969444971,-500.0,0.00030409,4]
[341539394,1730969444981,-500.0,0.00030409,4]
[341539395,1730969444990,-1019.56,0.00030409,4]
[341539396,1730969445000,-1019.56,0.00030409,4]
[341539397,1730969445009,-500.0,0.00030409,4]
[341539398,1730969445019,-500.0,0.00030409,4]
[341539399,1730969445029,-1271.9,0.00030409,4]
[341539400,1730969445039,-1271.9,0.00030409,4]
[341539401,1730969445049,-821.09,0.00030409,4]
[341539402,1730969445058,-821.09,0.00030409,4]
[341539403,1730969445069,-275.91104,0.0003041,4]
[341539404,1730969445079,-268.946191,0.0003041,4]
[341539405,1730969445089,-500.0,0.0003041,4]
[341539406,1730969445099,-500.0,0.0003041,4]
[341539407,1730969445110,-500.0,0.0003041,4]
[341539408,1730969445120,-500.0,0.0003041,4]
[341539409,1730969445130,-478.3472431,0.0003041,4]
[341539410,1730969445140,-500.0,0.0003041,4]
[341539411,1730969445149,-500.0,0.0003041,4]
[341539412,1730969445158,-500.0,0.0003041,4]
[341539413,1730969445168,-500.0,0.0003041,4]
[341539414,1730969445177,-500.0,0.0003041,4]
[341539415,1730969445187,-500.0,0.0003041,4]
[341539416,1730969445197,-500.0,0.0003041,4]
[341539417,1730969445206,-500.0,0.0003041,4]
[341539418,1730969445215,-365.18189176,0.0003041,4]
[341539419,1730969445225,-502.45783508,0.0003041,4]
[341539420,1730969445235,-885.59,0.0003041,4]
[341539421,1730969445245,-834.95,0.0003041,4]
[341539422,1730969445254,-500.0,0.0003041,4]
[341539423,1730969445263,-786.25,0.0003041,4]
[341539424,1730969445273,-500.0,0.0003041,4]
[341539425,1730969445283,-500.0,0.0003041,4]
[341539426,1730969445293,-500.0,0.0003041,4]
[341539427,1730969445302,-500.0,0.0003041,4]
[341539428,1730969445313,-311.42,0.0003041,4]
[341539429,1730969445329,-500.0,0.0003041,4]
[341539431,1730969445339,-500.0,0.0003041,4]
[341539432,1730969445349,-500.0,0.0003041,4]
[341539433,1730969445358,-500.0,0.0003041,4]
[341539434,1730969445367,-351.10142492,0.0003041,4]
[341539435,1730969445378,-503.30961458,0.0003041,4]
[341539436,1730969445389,-500.0,0.0003041,4]
[341539438,1730969445399,-500.0,0.0003041,4]
[341539439,1730969445410,-350.53342828,0.0003041,4]
[341539440,1730969445420,-500.55,0.0003041,4]
[341539441,1730969445430,-500.0,0.0003041,4]
[341539442,1730969445441,-500.0,0.0003041,4]
[341539443,1730969445451,-500.0,0.0003041,4]
[341539444,1730969445461,-523.44,0.0003041,4]
[341539445,1730969445472,-500.0,0.0003041,4]
[341539446,1730969445482,-500.0,0.0003041,4]
[341539447,1730969445492,-500.0,0.0003041,4]
[341539448,1730969445501,-531.68730369,0.0003041,4]
[341539449,1730969445511,-500.0,0.0003041,4]
[341539450,1730969445520,-500.0,0.0003041,4]
[341539451,1730969445530,-500.0,0.0003041,4]
[341539452,1730969445539,-500.0,0.0003041,4]
[341539453,1730969445550,-500.0,0.0003041,4]
[341539454,1730969445563,-500.0,0.0003041,4]
[341539455,1730969445573,-500.0,0.0003041,4]
[341539456,1730969445583,-500.0,0.0003041,4]
[341539457,1730969445594,-500.0,0.0003041,4]
[341539458,1730969445604,-550.33,0.0003041,4]
[341539459,1730969445614,-629.42780967,0.0003041,4]
[341539460,1730969445623,-500.0,0.0003041,4]
[341539461,1730969445633,-543.96,0.0003041,4]
[341539462,1730969445644,-500.0,0.0003041,4]
[341539463,1730969445653,-779.74,0.0003041,4]
[341539464,1730969445664,-857.03,0.0003041,4]
[341539465,1730969445673,-500.0,0.0003041,4]
[341539466,1730969445684,-464.43889626,0.0003041,4]
[341539467,1730969445694,-522.99,0.0003041,4]
[341539468,1730969445705,-856.82,0.0003041,4]
[341539469,1730969445715,-500.0,0.0003041,4]
[341539470,1730969445725,-682.83,0.0003041,4]
[341539471,1730969445736,-552.38,0.0003041,4]
[341539472,1730969445747,-501.72,0.0003041,4]
[341539473,1730969445757,-814.48,0.0003041,4]
[341539474,1730969445768,-692.1,0.0003041,4]
[341539475,1730969445779,-500.0,0.0003041,4]
[341539476,1730969445791,-500.0,0.0003041,4]
[341539477,1730969445801,-500.0,0.0003041,4]
[341539478,1730969445812,-559.55,0.0003041,4]
[341539479,1730969445823,-1935.77,0.0003041,4]
[341539480,1730969445833,-500.0,0.0003041,4]
[341539481,1730969445845,-500.0,0.0003041,4]
[341539482,1730969445855,-500.0,0.0003041,4]
[341539483,1730969445867,-500.0,0.0003041,4]
[341539484,1730969445877,-500.0,0.0003041,4]
[341539486,1730969445888,-500.0,0.0003041,4]
[341539487,1730969445899,-500.0,0.0003041,4]
[341539488,1730969445909,-500.0,0.0003041,4]
[341539489,1730969445920,-1495.4,0.0003041,4]
[341539490,1730969445930,-739.29,0.0003041,4]
[341539491,1730969445941,-500.0,0.0003041,4]
[341539492,1730969445951,-500.0,0.0003041,4]
[341539493,1730969445962,-500.0,0.0003041,4]
[341539494,1730969445973,-500.0,0.0003041,4]
[341539495,1730969445983,-500.0,0.0003041,4]
[341539496,1730969445992,-500.0,0.0003041,4]
[341539497,1730969446002,-729.35,0.0003041,4]
[341539498,1730969446012,-697.85,0.0003041,4]
[341539499,1730969446022,-503.93,0.0003041,4]
[341539500,1730969446032,-500.0,0.0003041,4]
[341539501,1730969446042,-500.0,0.0003041,4]
[341539502,1730969446052,-500.0,0.0003041,4]
[341539503,1730969446062,-594.09,0.0003041,4]
[341539504,1730969446073,-500.0,0.0003041,4]
[341539505,1730969446083,-672.86,0.0003041,4]
[341539506,1730969446093,-1245.64,0.0003041,4]
[341539507,1730969446103,-849.98,0.0003041,4]
[341539508,1730969446113,-892.99,0.0003041,4]
[341539509,1730969446123,-500.0,0.0003041,4]
[341539510,1730969446133,-500.0,0.0003041,4]
[341539511,1730969446143,-500.0,0.0003041,4]
[341539512,1730969446154,-500.0,0.0003041,4]
[341539513,1730969446163,-500.0,0.0003041,4]
[341539514,1730969446174,-1326.41,0.0003041,4]
[341539515,1730969446184,-1385.2,0.0003041,4]
[341539516,1730969446194,-581.9,0.0003041,4]
[341539517,1730969446203,-500.0,0.0003041,4]
[341539518,1730969446284,-500.0,0.0003041,4]
[341539519,1730969446293,-500.0,0.0003041,4]
[341539520,1730969446304,-500.0,0.0003041,4]
[341539521,1730969446314,-500.0,0.0003041,4]
[341539522,1730969446324,-500.0,0.0003041,4]
[341539523,1730969446334,-416.87594939,0.0003041,4]
[341539524,1730969446344,-539.97,0.0003041,4]
[341539525,1730969446354,-500.0,0.0003041,4]
[341539526,1730969446364,-500.0,0.0003041,4]
[341539527,1730969446374,-500.0,0.0003041,4]
[341539528,1730969446385,-500.0,0.0003041,4]
[341539529,1730969446395,-500.0,0.0003041,4]
[341539530,1730969446405,-500.0,0.0003041,4]
[341539531,1730969446415,-500.0,0.0003041,4]
[341539532,1730969446425,-500.0,0.0003041,4]
[341539533,1730969446435,-632.87,0.0003041,4]
[341539534,1730969446444,-1547.06,0.0003041,4]
[341539535,1730969446454,-500.0,0.0003041,4]
[341539536,1730969446464,-1531.39,0.0003041,4]
[341539537,1730969446474,-500.0,0.0003041,4]
[341539538,1730969446484,-500.0,0.0003041,4]
[341539539,1730969446494,-500.0,0.0003041,4]
[341539540,1730969446503,-500.0,0.0003041,4]
[341539541,1730969446513,-595.53,0.0003041,4]
[341539542,1730969446523,-500.0,0.0003041,4]
[341539543,1730969446533,-500.0,0.0003041,4]
[341539544,1730969446544,-751.1,0.0003041,4]
[341539545,1730969446554,-593.22,0.0003041,4]
[341539546,1730969446566,-1959.41,0.0003041,4]
[341539547,1730969446576,-500.0,0.0003041,4]
[341539548,1730969446586,-500.0,0.0003041,4]
[341539549,1730969446596,-500.0,0.0003041,4]
[341539550,1730969446606,-500.0,0.0003041,4]
[341539551,1730969446615,-329.45277887,0.0003041,4]
[341539552,1730969446625,-1482.58,0.0003041,4]
[341539553,1730969446634,-500.0,0.0003041,4]
[341539554,1730969446643,-500.0,0.0003041,4]
[341539555,1730969446653,-1658.29,0.0003041,4]
[341539556,1730969446663,-500.0,0.0003041,4]
[341539557,1730969446672,-1037.52,0.0003041,4]
[341539558,1730969446681,-500.0,0.0003041,4]
[341539559,1730969446690,-647.26,0.0003041,4]
[341539560,1730969446699,-500.0,0.0003041,4]
[341539561,1730969446708,-559.3371134,0.0003041,4]
[341539562,1730969446718,-540.71,0.0003041,4]
[341539563,1730969446727,-500.0,0.0003041,4]
[341539564,1730969446736,-500.0,0.0003041,4]
[341539565,1730969446745,-500.0,0.0003041,4]
[341539566,1730969446755,-500.0,0.0003041,4]
[341539567,1730969446765,-500.0,0.0003041,4]
[341539568,1730969446774,-500.0,0.0003041,4]
[341539569,1730969446786,-676.08,0.0003041,4]
[341539570,1730969446796,-500.0,0.0003041,4]
[341539571,1730969446805,-500.0,0.0003041,4]
[341539572,1730969446815,-500.0,0.0003041,4]
[341539573,1730969446824,-500.0,0.0003041,4]
[341539574,1730969446834,-503.41583674,0.0003041,4]
[341539575,1730969446843,-888.63,0.0003041,4]
[341539576,1730969446853,-638.91,0.0003041,4]
[341539577,1730969446863,-1467.52,0.0003041,4]
[341539578,1730969446873,-500.0,0.0003041,4]
[341539579,1730969446882,-594.59,0.0003041,4]
[341539580,1730969446891,-151.0,0.0003041,7]
[341539581,1730969446900,-151.0,0.0003041,7]
[341539582,1730969446909,-1310.42,0.0003041,4]
[341539583,1730969446919,-500.0,0.0003041,4]
[341539584,1730969446928,-597.23,0.0003041,4]
[341539585,1730969446938,-500.0,0.0003041,4]
[341539586,1730969446947,-1256.83,0.0003041,4]
[341539587,1730969446956,-500.0,0.0003041,4]
[341539588,1730969446965,-645.67,0.0003041,4]
[341539589,1730969446975,-1068.78,0.0003041,4]
[341539590,1730969446984,-1600.62,0.0003041,4]
[341539591,1730969446993,-1160.28,0.0003041,4]
[341539592,1730969447002,-500.0,0.0003041,4]
[341539593,1730969447011,-500.0,0.0003041,4]
[341539594,1730969447021,-500.0,0.0003041,4]
[341539595,1730969447030,-500.0,0.0003041,4]
[341539596,1730969447039,-554.93,0.0003041,4]
[341539597,1730969447047,-500.0,0.0003041,4]
[341539598,1730969447056,-1361.24,0.0003041,4]
[341539599,1730969447067,-576.51,0.0003041,4]
[341539600,1730969447076,-773.54,0.0003041,4]
[341539601,1730969447086,-1482.32,0.0003041,4]
[341539602,1730969447095,-582.92,0.0003041,4]
[341539603,1730969447104,-500.0,0.0003041,4]
[341539604,1730969447114,-500.0,0.0003041,4]
[341539605,1730969447123,-710.09,0.0003041,4]
[341539606,1730969447131,-500.0,0.0003041,4]
[341539607,1730969447141,-500.0,0.0003041,4]
[341539608,1730969447150,-686.23,0.0003041,4]
[341539609,1730969447160,-1435.15,0.0003041,4]
[341539610,1730969447169,-1167.0,0.0003041,4]
[341539611,1730969447178,-500.0,0.0003041,4]
[341539612,1730969447187,-514.47822346,0.0003041,4]
[341539613,1730969447196,-1150.78,0.0003041,4]
[341539614,1730969447206,-736.24,0.0003041,4]
[341539615,1730969447215,-500.0,0.0003041,4]
[341539616,1730969447224,-500.0,0.0003041,4]
[341539617,1730969447232,-2046.49,0.0003041,4]
[341539618,1730969447242,-500.0,0.0003041,4]
[341539619,1730969447251,-506.79062945,0.0003041,4]
[341539620,1730969447260,-500.0,0.0003041,4]
[341539621,1730969447269,-500.0,0.0003041,4]
[341539622,1730969447278,-925.56,0.0003041,4]
[341539623,1730969447287,-500.0,0.0003041,4]
[341539624,1730969447296,-500.0,0.0003041,4]
[341539625,1730969447305,-500.0,0.0003041,4]
[341539626,1730969447314,-1149.74,0.0003041,4]
[341539627,1730969447323,-500.0,0.0003041,4]
[341539628,1730969447332,-500.0,0.0003041,4]
[341539629,1730969447341,-1373.98,0.0003041,4]
[341539630,1730969447350,-1000.0,0.0003041,10]
[341539631,1730969447359,-1868.88,0.0003041,4]
[341539632,1730969447369,-1077.27,0.0003041,4]
[341539633,1730969447379,-500.0,0.0003041,4]
[341539634,1730969447388,-500.0,0.0003041,4]
[341539635,1730969447397,-1326.87,0.0003041,4]
[341539636,1730969447406,-500.0,0.0003041,4]
[341539637,1730969447415,-602.45,0.0003041,4]
[341539638,1730969447424,-600.59,0.0003041,4]
[341539639,1730969447433,-690.19,0.0003041,4]
[341539640,1730969447442,-500.0,0.0003041,4]
[341539641,1730969447451,-1122.55,0.0003041,4]
[341539642,1730969447460,-500.0,0.0003041,4]
[341539643,1730969447469,-1288.0,0.0003041,4]
[341539644,1730969447478,-500.0,0.0003041,4]
[341539645,1730969447487,-1099.48,0.0003041,4]
[341539646,1730969447497,-544.32,0.0003041,4]
[341539647,1730969447506,-500.0,0.0003041,4]
[341539648,1730969447515,-1282.86,0.0003041,4]
[341539649,1730969447524,-917.66,0.0003041,4]
[341539650,1730969447533,-500.0,0.0003041,4]
[341539651,1730969447541,-306.395862,0.0003041,7]
[341539652,1730969447552,-306.395862,0.0003041,7]
[341539653,1730969447561,-500.0,0.0003041,4]
[341539654,1730969447570,-306.395862,0.0003041,7]
[341539655,1730969447580,-306.395862,0.0003041,7]
[341539656,1730969447593,-500.0,0.0003041,4]
[341539657,1730969447603,-600.94,0.0003041,4]
[341539658,1730969447613,-1493.58,0.0003041,4]
[341539659,1730969447622,-1632.55,0.0003041,4]
[341539660,1730969447631,-500.0,0.0003041,4]
[341539661,1730969447641,-500.0,0.0003041,4]
[341539662,1730969447651,-500.0,0.0003041,4]
[341539663,1730969447661,-698.89,0.0003041,4]
[341539664,1730969447672,-500.0,0.0003041,4]
[341539665,1730969447681,-500.0,0.0003041,4]
[341539666,1730969447691,-500.0,0.0003041,4]
[341539667,1730969447701,-500.0,0.0003041,4]
[341539668,1730969447711,-1067.02,0.0003041,4]
[341539669,1730969447720,-500.0,0.0003041,4]
[341539670,1730969447730,-500.0,0.0003041,4]
[341539671,1730969447739,-1009.23,0.0003041,4]
[341539672,1730969447749,-729.79,0.0003041,4]
[341539673,1730969447759,-500.0,0.0003041,4]
[341539674,1730969447768,-1470.21,0.0003041,4]
[341539675,1730969447778,-500.0,0.0003041,4]
[341539676,1730969447791,-1383.39,0.0003041,4]
[341539677,1730969447801,-1343.4,0.0003041,4]
[341539678,1730969447813,-500.0,0.0003041,4]
[341539679,1730969447823,-500.0,0.0003041,4]
[341539680,1730969447833,-500.0,0.0003041,4]
[341539681,1730969447843,-538.3,0.0003041,4]
[341539682,1730969447853,-500.0,0.0003041,4]
[341539683,1730969447863,-619.82751195,0.0003041,4]
[341539684,1730969447873,-1456.53,0.0003041,4]
[341539685,1730969447882,-553.69,0.0003041,4]
[341539686,1730969447891,-500.0,0.0003041,4]
[341539687,1730969447901,-500.0,0.0003041,4]
[341539688,1730969447911,-659.04,0.0003041,4]
[341539689,1730969447920,-705.49,0.0003041,4]
[341539690,1730969447929,-1031.48,0.0003041,4]
[341539691,1730969447939,-685.25,0.0003041,4]
[341539692,1730969447948,-1219.13,0.0003041,4]
[341539693,1730969447957,-901.78,0.0003041,4]
[341539694,1730969447966,-500.0,0.0003041,4]
[341539695,1730969447976,-500.0,0.0003041,4]
[341539696,1730969447986,-500.0,0.0003041,4]
[341539697,1730969447995,-500.0,0.0003041,4]
[341539698,1730969448004,-1349.75,0.0003041,4]
[341539699,1730969448014,-500.0,0.0003041,4]
[341539700,1730969448024,-500.0,0.0003041,4]
[341539701,1730969448033,-500.0,0.0003041,4]
[341539702,1730969448042,-500.0,0.0003041,4]
[341539703,1730969448051,-583.06,0.0003041,4]
[341539704,1730969448063,-500.0,0.0003041,4]
[341539705,1730969448072,-1750.78,0.0003041,4]
[341539706,1730969448082,-631.01,0.0003041,4]
[341539707,1730969448092,-500.0,0.0003041,4]
[341539708,1730969448101,-655.25,0.0003041,4]
[341539709,1730969448111,-500.0,0.0003041,4]
[341539710,1730969448120,-598.17,0.0003041,4]
[341539711,1730969448130,-500.0,0.0003041,4]
[341539712,1730969448139,-500.0,0.0003041,4]
[341539713,1730969448150,-1316.39,0.0003041,4]
[341539714,1730969448160,-500.0,0.0003041,4]
[341539715,1730969448169,-1112.0,0.0003041,4]
[341539716,1730969448179,-556.71,0.0003041,4]
[341539717,1730969448188,-500.0,0.0003041,4]
[341539718,1730969448197,-500.0,0.0003041,4]
[341539719,1730969448207,-1074.32,0.0003041,4]
[341539720,1730969448217,-500.0,0.0003041,4]
[341539721,1730969448227,-599.16485415,0.0003041,4]
[341539722,1730969448236,-649.09,0.0003041,4]
[341539723,1730969448246,-535.23,0.0003041,4]
[341539724,1730969448255,-1415.78,0.0003041,4]
[341539725,1730969448264,-688.13,0.0003041,4]
[341539726,1730969448274,-500.0,0.0003041,4]
[341539727,1730969448284,-500.0,0.0003041,4]
[341539728,1730969448294,-500.0,0.0003041,4]
[341539729,1730969448303,-500.0,0.0003041,4]
[341539730,1730969448313,-1514.44,0.0003041,4]
[341539731,1730969448323,-1750.47,0.0003041,4]
[341539732,1730969448332,-500.0,0.0003041,4]
[341539733,1730969448344,-626.75,0.0003041,4]
[341539734,1730969448353,-629.45,0.0003041,4]
[341539735,1730969448363,-671.03,0.0003041,4]
[341539736,1730969448372,-500.0,0.0003041,4]
[341539737,1730969448382,-1006.04,0.0003041,4]
[341539738,1730969448391,-974.4,0.0003041,4]
[341539739,1730969448401,-663.17,0.0003041,4]
[341539740,1730969448410,-500.0,0.0003041,4]
[341539741,1730969448420,-1004.82,0.0003041,4]
[341539742,1730969448430,-1070.7,0.0003041,4]
[341539743,1730969448440,-415.54,0.0003041,4]
[341539744,1730969448449,-748.04,0.0003041,4]
[341539745,1730969448459,-2337.4,0.0003041,4]
[341539746,1730969448469,-500.0,0.0003041,4]
[341539747,1730969448479,-1202.65,0.0003041,4]
[341539748,1730969448488,-500.0,0.0003041,4]
[341539749,1730969448498,-500.0,0.0003041,4]
[341539750,1730969448507,-885.63,0.0003041,4]
[341539751,1730969448517,-957.84,0.0003041,4]
[341539752,1730969448526,-661.09,0.0003041,4]
[341539753,1730969448536,-500.0,0.0003041,4]
[341539754,1730969448545,-500.0,0.0003041,4]
[341539755,1730969448555,-1275.62,0.0003041,4]
[341539756,1730969448565,-3141.66,0.0003041,4]
[341539757,1730969448577,-500.0,0.0003041,4]
[341539758,1730969448586,-500.0,0.0003041,4]
[341539759,1730969448596,-656.85,0.0003041,4]
[341539760,1730969448606,-763.41,0.0003041,4]
[341539761,1730969448615,-500.0,0.0003041,4]
[341539762,1730969448625,-500.0,0.0003041,4]
[341539763,1730969448635,-649.72,0.0003041,4]
[341539764,1730969448644,-516.28,0.0003041,4]
[341539765,1730969448654,-2000.0,0.0003041,4]
[341539766,1730969448664,-500.0,0.0003041,4]
[341539767,1730969448673,-557.85,0.0003041,4]
[341539768,1730969448683,-500.0,0.0003041,4]
[341539769,1730969448692,-500.0,0.0003041,4]
[341539770,1730969448702,-668.69,0.0003041,4]
[341539771,1730969448712,-1026.73,0.0003041,4]
[341539772,1730969448722,-661.34,0.0003041,4]
[341539773,1730969448732,-644.64,0.0003041,4]
[341539774,1730969448742,-500.0,0.0003041,4]
[341539775,1730969448752,-1233.24,0.0003041,4]
[341539776,1730969448761,-853.01,0.0003041,4]
[341539777,1730969448771,-500.0,0.0003041,4]
[341539778,1730969448783,-500.0,0.0003041,4]
[341539779,1730969448793,-500.0,0.0003041,4]
[341539780,1730969448803,-1746.61,0.0003041,4]
[341539781,1730969448813,-500.0,0.0003041,4]
[341539782,1730969448823,-1576.01,0.0003041,4]
[341539783,1730969448832,-1335.94,0.0003041,4]
[341539784,1730969448842,-500.0,0.0003041,4]
[341539785,1730969448853,-1037.79,0.0003041,4]
[341539786,1730969448863,-644.46,0.0003041,4]
[341539787,1730969448873,-652.7,0.0003041,4]
[341539788,1730969448883,-500.0,0.0003041,4]
[341539789,1730969448894,-1101.29,0.0003041,4]
[341539790,1730969448904,-1196.9,0.0003041,4]
[341539791,1730969448914,-479.32633625,0.0003041,4]
[341539792,1730969448924,-555.58,0.0003041,4]
[341539793,1730969448933,-1123.44,0.0003041,4]
[341539794,1730969448943,-508.85,0.0003041,4]
[341539795,1730969448952,-500.0,0.0003041,4]
[341539796,1730969448962,-1350.3,0.0003041,4]
[341539797,1730969448971,-500.0,0.0003041,4]
[341539798,1730969448981,-500.0,0.0003041,4]
[341539799,1730969448991,-1083.86,0.0003041,4]
[341539800,1730969449000,-732.31,0.0003041,4]
[341539801,1730969449010,-500.0,0.0003041,4]
[341539802,1730969449020,-607.09,0.0003041,4]
[341539803,1730969449029,-500.0,0.0003041,4]
[341539804,1730969449039,-1517.18,0.0003041,4]